Workbook

Sheet Informations importantes
B3: Adapt+ : Programme d'encouragement pour l'adaptation aux changements climatiques
B6: Soumission des candidatures et informations détaillées
B9: Toutes les informations pertinentes concernant Adapt+, l'appel à projets ainsi que les thèmes et critères des projets sont disponibles sous le lien suivant :
B10: Programme d'encouragement Adapt+ | F10: Ces pages font partie de la plateforme d'information Adaptation aux changements climatiques de l'OFEV.
B13: La demande complète doit être soumise à l'OFEV au plus tard le 31 août 2025. Les demandes incomplètes, reçues après la date limite ou ne correspondant pas aux thèmes ou aux critères de l'appel à projets seront rejetées sans examen.
B15: Le respect des exigences listées seul n'ouvre pas de droit à l'octroi d'une aide financière.
B18: Pour toute question concernant votre demande d'aide financière, veuillez vous adresser à : | L18: helpadaptplus@bafu.admin.ch
B19: Pour toute question d'ordre général concernant le programme, veuillez vous adresser à : | L19: adaptplus@bafu.admin.ch
D24: Texte | F24: Les cases marquées en vert contiennent des informations complémentaires sur la question.
D26: Question* | F26: Les questions marquées d'un astérisque sont facultatives.
F28: Cette icône indique que des documents spécifiques seront à téléverser lors de la soumission définitive de la demande.

Sheet 1 Structure porteuse de projet
B3: Adapt+
B5: 1 Structure porteuse de projet
B7: Veuillez indiquer ici les informationsnécessaires sur la structure porteuse du projet et saisir les coordonnées d'une personne de contact (responsable de projet) ainsi que d'une suppléance (obligatoire).
B9: 1.1 Personne de contact (responsable de projet) | D9: 1.2 Suppléance
B11: Civilité | D11: Civilité
B14: Nom | D14: Nom
B17: Prénom | D17: Prénom
B20: Courriel | D20: Courriel
B23: Langue de correspondance | D23: Langue de correspondance
B26: Numéro de téléphone direct | D26: Numéro de téléphone direct
B29: Numéro de téléphone central (standard) | D29: Numéro de téléphone central (standard)
B35: 1.3 Structure porteuse
B37: Nom de la structure | D37: Site internet*
D38: https://
B40: Service spécifique*
B43: Adresse, rue et numéro
B46: Code postal
B49: Commune/ville
B52: Canton
B55: UID*

Sheet 2 Données du projet
B3: Adapt+
B5: 2 Données du projet
B7: Veuillez saisir ici les informations générales relatives au projet.
B10: 2.1 Informations générales
B12: 2.1.1 Titre du projet (rester succinct) | D12: 2.1.2 fait suite à un précédent projet:*
D13: Description succincte du précédent projet
B15: 2.1.3 Bref résumé du projet
B16: Description du projet en quelques phrases
B18: 2.1.4 Vision du projet, transformation visée à long terme
B22: 2.2 Niveau de mise en œuvre du projet
B24: 2.2.1 Niveau de mise en œuvre
B25: À quel niveau le projet sera-t-il mis en œuvre ? Veuillez sélectionner.
B27: 2.2.2 Dans quel canton le projet sera-t-il mise en œuvre ?
B28: Veuillez sélectionner.
B30: 2.2.3 Dans quelle comune le projet sera-t-il mise en œuvre ?
B31: Énumérez toutes les communes concernées.
B33: 2.2.4 Langue du projet
B37: 2.3 Contribution à l'adaptation
B39: 2.3.1 À quel objectif de l'adaptation le projet contribue-t-il ?
B40: Veuillez sélectionner.
B42: 2.3.2 Comment le projet y contribue-t-il ?
B43: Veuillez vous limiter à 900 caractères maximum.
D48: Vous trouverez ici les principes de la statégie d'adaptation.
B49: 2.4 Contribution aux principes de la stratégie d'adaptation du Conseil fédéral
B51: 2.4.1 La mesure est-elle conforme aux principes de la stratégie d'adaptation ?
B52: 1) en termes de durabilité | D52: 3) Compatibilité adaptation et protection du climat (réduction des émissions) ?
B54: 0 | E54: 0 | F54: Non éligible | G54: Eligible | J54: =IF(SUM(B54,B60,E54,E60)=4,"WAHR","FALSCH") -> FALSCH
B58: 2) Action coordonnée de la Confédération, des cantons, des communes et des particuliers ? | D58: 4) Prise en compte des connaissances scientifiques
B60: 0 | E60: 0
B65: 2.5 Exécution du projet
B67: 2.5.1 Le projet a-t-il déjà démarré ? | D67: 2.5.2 Le projet sera-t-il mis en œuvre même sans contribution fédérale ?
B69: 2 | E69: 2 | F69: Non éligible | G69: Eligible | J69: =IF(SUM(B69,E69)>3,"FALSCH","WAHR") -> FALSCH
B74: 2.5.3 Autorisations
B76: Toutes les autorisations nécessaires à la réalisation du projet ont-elles été obtenues ?
B77: 1
D78: Non éligible | E78: Eligible
B86: Téléverser le justificatif
B89: 2.6 Organisation du projet
B91: Veuillez présenter l'organigramme du projet (max. 1 page A4).
B93: 2.6.1 Organisations partenaires du projet
B94: Noms | C94: Interlocuteur | D94: Accord écrit | E94: Mission
D95: FALSE
D96: FALSE
D97: FALSE
D98: FALSE
D99: FALSE
B103: 2.6.2 Documents concernant l'organisation du projet (organigramme et accords écrits)
B104: Téléverser un nouveau document
B110: 2.7 Secteur
B112: 2.7.1 À quel secteur s'adresse le projet ?
B113: Veuillez sélectionner.
B116: 2.8 Risques
B118: 2.8.1 Quel est le principal risque traité par le projet ?
B119: Veuillez sélectionner.
B121: 2.8.2 Quel autre risque est également pris en considération ?*
B122: Veuillez sélectionner.
B124: 2.8.3 Quel autre risque est également pris en considération ?*
B125: Veuillez sélectionner.

Sheet 3 Multiplication
B3: Adapt+
B5: 3 Questions relatives à la multiplication
B7: Veuillez saisir les informations relatives à la multiplication et téléverser les documents nécessaires.
B9: 3.1 Problématique du projet
B11: 3.1.1 À quelle problématique votre projet s'attaque-t-il concrètement ?
B18: 3.2 Mesures
B20: 3.2.1 Quelles mesures d'adaptation seront mises en œuvre ? (parmis la liste fournie)
B23: 3.2.2 Mesures supplémentaires ?*
B27: 3.2.3 Autre mesure éprouvée (hors liste)*
B28: Si oui, laquelle? | D28: Si votre mesure ne figure pas dans la liste ci-dessus, vous pouvez la décrire ci-contre.
B30: 3.2.4 Citez un exemple de projet y afférent mis en œuvre: | D30: 3.2.5 Lien vers l'exemple de projet
D31: https://
B37: 3.3 Situation initiale dans la zone du projet
B39: 3.3.1 Quelle est la situation initiale dans la zone du projet par rapport à la problématique ? | D39: 3.2.5 En quoi le projet se distingue-t-il de la mesure éprouvée ?
B46: 3.4 Travaux terminés ou en cours
B48: 3.4.1 Existe-t-il des travaux spécifiques achevés ou en cours qui sont pertinents pourla problématique et le projet ?
B50: oui
B51: non
B53: 3.4.2 Décrivez ces travaux et leur pertinence
A55: 0
B58: 3.5 Contribution à l'adaptation aux changements climatiques
B60: 3.5.1 Comment le projet contribue-t-il à la protection de la population ou des biens matériels et/ou à l'amélioration de la capacité d'adaptation de la société, de l'économie et de l'environnement ?
B65: 3.5.2 En quoi le projet est-il pertinent pour l'adaptation aux changements climatiques dans la région concernée ?
B70: 3.5.3 Veuillez décrire la part des coûts de votre mesure qui, selon vous, peut être éligible à l'octroi d'une aide financière Adapt+.
B76: 3.6 Documents
B78: 3.6.1 Documents supplémentaires éventuels concernant la multiplication
B79: Téléverser un nouveau document

Sheet 4 Effets et utilité
B3: Adapt+
B5: 4 Utilité et effets
B7: Veuillez indiquer ici l'utilité et les effets de votre projet, la manière dont il interagit avec vos groupes cibles et les obstacles que vous pourriez rencontrer. | D7: L’effet d’une mesure exprime son influence sur un indicateur climatique ou sur l’état des systèmes naturels. Il peut s’agir, par exemple, d’une baisse de la température obtenue sur une place publique en période de canicule grâce à la plantation d’arbres ou d’une réduction de l’assèchement des sols agricoles grâce à l’aménagement d’éléments-éponges ou à une exploitation adaptée au site. L’utilité d’une mesure décrit l’ampleur des dommages qu’elle permet d’éviter, par exemple le nombre de personnes qui bénéficient d’une atténuation de la chaleur ou les pertes de rendement potentiellement évitées dans l’agriculture.
B10: 4.1 Questions sur les effets
B12: 4.1.1 Quels effets (outcomes) sont attendus du projet ?
B17: 4.1.2 Quels indicateurs et méthodes de collecte permettent de vérifier si les objectifs en termes d'efficacité (outcomes) sont atteints ?
B22: 4.1.3 Quels produits (outputs) seront élaborés dans le cadre du projet ? Veuillez décrire en détail les prestations qui seront fournies ou les produits qui seront créés.
B27: 4.1.4 Quelle durée d'effet de la mesure est attendue (estimation conservatrice) ?
B34: 4.2 Questions relatives aux groupes cibles
B36: 4.2.1 Quels groupes cibles sont concernés dans la zone du projet ?
B41: 4.2.2 Comment ces groupes cibles seront-ils sensibilisés et impliqués ?
B46: 4.2.3 Des conflits d'usage ou d'objectifs sont-ils attendus lors de l'introduction de la mesure ? Si oui, lesquels ?
B51: 4.3 Questions relatives aux mesures
B53: 4.3.1 La mesure d'adaptation contribue-t-elle directement à éviter des dommages ?
B56: 0
B59: 4.3.2 Description de la manière dont la mesure y contribue :
B65: 4.3.3 La mesure d'adaptation permet-elle d'éviter des dommages irréversibles ?
B67: 0
B71: 4.3.4 Description de la manière dont la mesure y contribue :
B76: 4.3.5 La mesure d'adaptation réduit-elle plusieurs risques à la fois ?
D77: Par risques on entend ici les défis transversaux selon l'analyse des risques climatiques
B78: 0
D79: - Accentuation des fortes chaleurs
D80: - Accroissement de la sécheresse estivale
B81: 4.3.6 Si oui, lesquels et comment ?* | D81: - Augmentation du potentiel de danger
D82: - Hausse des températures moyennes
D83: - Modification croissante des milieux naturels et de la composition des espèces
B86: 4.3.7 Combien de personnes bénéficieront de cette mesure d'adaptation ?
B92: 4.3.8 Quels sont les autres avantages monétaires de cette mesure ?
B97: 4.3.9 La mesure d'adaptation peut-elle contribuer à long terme à éviter des dommages ou à accroître la capacité d'adaptation ?
B104: 4.4 Documents
B107: 4.4.1 Documents concernant les effets et l'utilité
B108: Téléverser un nouveau document

Sheet 5 Durée
B3: Adapt+
B5: 5 Durée du projet
B7: 5.1 Durée d'exécution du projet
B10: de : | C10: 2025-11-01 | D10: à : | E10: 2027-04-25 | G10: durée du projet | I10: =DATEDIF(C10,E10,"m") -> 17 | L10: mois
B13: 5.2 Calendrier prévisionnel simplifié
I15: 2025-01-01 | J15: 2025-02-01 | K15: 2025-03-01 | L15: 2025-04-01 | M15: 2025-05-01 | N15: 2025-06-01 | O15: 2025-07-01 | P15: 2025-08-01 | Q15: 2025-09-01 | R15: 2025-10-01 | S15: 2025-11-01 | T15: 2025-12-01 | U15: 2026-01-01 | V15: 2026-02-01 | W15: 2026-03-01 | X15: 2026-04-01 | Y15: 2026-05-01 | Z15: 2026-06-01 | AA15: 2026-07-01 | AB15: 2026-08-01 | AC15: 2026-09-01 | AD15: 2026-10-01 | AE15: 2026-11-01 | AF15: 2026-12-01 | AG15: 2027-01-01 | AH15: 2027-02-01 | AI15: 2027-03-01 | AJ15: 2027-04-01 | AK15: 2027-05-01 | AL15: 2027-06-01 | AM15: 2027-07-01 | AN15: 2027-08-01 | AO15: 2027-09-01 | AP15: 2027-10-01 | AQ15: 2027-11-01 | AR15: 2027-12-01 | AS15: 2028-01-01 | AT15: 2028-02-01 | AU15: 2028-03-01 | AV15: 2028-04-01 | AW15: 2028-05-01 | AX15: 2028-06-01 | AY15: 2028-07-01 | AZ15: 2028-08-01 | BA15: 2028-09-01 | BB15: 2028-10-01 | BC15: 2028-11-01 | BD15: 2028-12-01 | BE15: 2029-01-01 | BF15: 2029-02-01 | BG15: 2029-03-01 | BH15: 2029-04-01 | BI15: 2029-05-01 | BJ15: 2029-06-01 | BK15: 2029-07-01 | BL15: 2029-08-01 | BM15: 2029-09-01 | BN15: 2029-10-01 | BO15: 2029-11-01 | BP15: 2029-12-01
I16: =YEAR(C10) -> 2025 | U16: =I16+1 -> 2026 | AG16: =U16+1 -> 2027 | AS16: =AG16+1 -> 2028 | BE16: =AS16+1 -> 2029
B17: Type | C17: Description | G17: début | H17: fin | I17: =I15 -> 2025-01-01 | J17: 2025-02-01 | K17: 2025-03-01 | L17: 2025-04-01 | M17: 2025-05-01 | N17: =N15 -> 2025-06-01 | O17: 2025-07-01 | P17: 2025-08-01 | Q17: 2025-09-01 | R17: 2025-10-01 | S17: 2025-11-01 | T17: 2025-12-01 | U17: 2026-01-01 | V17: 2026-02-01 | W17: 2026-03-01 | X17: 2026-04-01 | Y17: 2026-05-01 | Z17: 2026-06-01 | AA17: 2026-07-01 | AB17: 2026-08-01 | AC17: 2026-09-01 | AD17: 2026-10-01 | AE17: 2026-11-01 | AF17: 2026-12-01 | AG17: 2027-01-01 | AH17: 2027-02-01 | AI17: 2027-03-01 | AJ17: 2027-04-01 | AK17: 2027-05-01 | AL17: 2027-06-01 | AM17: 2027-07-01 | AN17: 2027-08-01 | AO17: 2027-09-01 | AP17: 2027-10-01 | AQ17: 2027-11-01 | AR17: 2027-12-01 | AS17: =AS15 -> 2028-01-01 | AT17: 2028-02-01 | AU17: 2028-03-01 | AV17: 2028-04-01 | AW17: 2028-05-01 | AX17: 2028-06-01 | AY17: 2028-07-01 | AZ17: 2028-08-01 | BA17: 2028-09-01 | BB17: 2028-10-01 | BC17: 2028-11-01 | BD17: 2028-12-01 | BE17: 2029-01-01 | BF17: 2029-02-01 | BG17: 2029-03-01 | BH17: 2029-04-01 | BI17: 2029-05-01 | BJ17: 2029-06-01 | BK17: 2029-07-01 | BL17: 2029-08-01 | BM17: 2029-09-01 | BN17: 2029-10-01 | BO17: 2029-11-01 | BP17: 2029-12-01
B18: Jalon | C18: J1: Achèvement des travaux préparatoires relatifs à la mesure | G18: 2025-01-01 | H18: 2025-10-01 | I18: =IF(AND(I$17>=$G18,I$17<=$H18),1,0) -> 1 | J18: =IF(AND(J$17>=$G18,J$17<=$H18),1,0) -> 1 | K18: 1 | L18: 1 | M18: 1 | N18: 1 | O18: 1 | P18: 1 | Q18: 1 | R18: 1 | S18: 0 | T18: 0 | U18: 0 | V18: 0 | W18: 0 | X18: 0 | Y18: 0 | Z18: 0 | AA18: 0 | AB18: 0 | AC18: 0 | AD18: 0 | AE18: 0 | AF18: 0 | AG18: 0 | AH18: 0 | AI18: 0 | AJ18: 0 | AK18: 0 | AL18: 0 | AM18: 0 | AN18: 0 | AO18: 0 | AP18: 0 | AQ18: 0 | AR18: 0 | AS18: =IF(AND(AS$17>=$G18,AS$17<=$H18),1,0) -> 0 | AT18: =IF(AND(AT$17>=$G18,AT$17<=$H18),1,0) -> 0 | AU18: 0 | AV18: 0 | AW18: 0 | AX18: 0 | AY18: 0 | AZ18: 0 | BA18: 0 | BB18: 0 | BC18: 0 | BD18: 0 | BE18: 0 | BF18: 0 | BG18: 0 | BH18: 0 | BI18: 0 | BJ18: 0 | BK18: 0 | BL18: 0 | BM18: 0 | BN18: 0 | BO18: 0 | BP18: 0
B19: Lot de travaux | C19: LT1: Remise en état des travaux | G19: 2025-04-01 | H19: 2026-08-08 | I19: =IF(AND(I$17>=$G19,I$17<=$H19),1,0) -> 0 | J19: 0 | K19: 0 | L19: 1 | M19: 1 | N19: 1 | O19: 1 | P19: 1 | Q19: 1 | R19: 1 | S19: 1 | T19: 1 | U19: 1 | V19: 1 | W19: 1 | X19: 1 | Y19: =IF(AND(Y$17>=$G19,Y$17<=$H19),1,0) -> 1 | Z19: 1 | AA19: 1 | AB19: 1 | AC19: 0 | AD19: 0 | AE19: 0 | AF19: 0 | AG19: 0 | AH19: 0 | AI19: 0 | AJ19: 0 | AK19: 0 | AL19: 0 | AM19: 0 | AN19: 0 | AO19: =IF(AND(AO$17>=$G19,AO$17<=$H19),1,0) -> 0 | AP19: 0 | AQ19: 0 | AR19: 0 | AS19: 0 | AT19: 0 | AU19: 0 | AV19: 0 | AW19: 0 | AX19: 0 | AY19: 0 | AZ19: 0 | BA19: 0 | BB19: 0 | BC19: 0 | BD19: 0 | BE19: 0 | BF19: 0 | BG19: 0 | BH19: 0 | BI19: 0 | BJ19: 0 | BK19: 0 | BL19: 0 | BM19: 0 | BN19: 0 | BO19: 0 | BP19: 0
B20: Lot de travaux | G20: 2025-11-01 | H20: 2026-12-01 | I20: 0 | J20: 0 | K20: 0 | L20: 0 | M20: 0 | N20: 0 | O20: 0 | P20: 0 | Q20: 0 | R20: 0 | S20: 1 | T20: 1 | U20: 1 | V20: 1 | W20: 1 | X20: 1 | Y20: 1 | Z20: 1 | AA20: 1 | AB20: 1 | AC20: 1 | AD20: 1 | AE20: 1 | AF20: 1 | AG20: 0 | AH20: 0 | AI20: 0 | AJ20: 0 | AK20: 0 | AL20: 0 | AM20: 0 | AN20: 0 | AO20: 0 | AP20: 0 | AQ20: 0 | AR20: 0 | AS20: 0 | AT20: 0 | AU20: 0 | AV20: 0 | AW20: 0 | AX20: 0 | AY20: 0 | AZ20: 0 | BA20: 0 | BB20: 0 | BC20: 0 | BD20: 0 | BE20: 0 | BF20: 0 | BG20: 0 | BH20: 0 | BI20: 0 | BJ20: 0 | BK20: 0 | BL20: 0 | BM20: 0 | BN20: 0 | BO20: 0 | BP20: 0
B21: Autres | G21: 2026-10-01 | H21: 2027-10-01 | I21: 0 | J21: 0 | K21: 0 | L21: 0 | M21: 0 | N21: 0 | O21: 0 | P21: 0 | Q21: 0 | R21: 0 | S21: 0 | T21: 0 | U21: 0 | V21: 0 | W21: 0 | X21: 0 | Y21: 0 | Z21: 0 | AA21: 0 | AB21: 0 | AC21: 0 | AD21: 1 | AE21: 1 | AF21: 1 | AG21: 1 | AH21: 1 | AI21: 1 | AJ21: 1 | AK21: 1 | AL21: 1 | AM21: 1 | AN21: 1 | AO21: 1 | AP21: 1 | AQ21: 0 | AR21: 0 | AS21: 0 | AT21: 0 | AU21: 0 | AV21: 0 | AW21: 0 | AX21: 0 | AY21: 0 | AZ21: 0 | BA21: 0 | BB21: 0 | BC21: 0 | BD21: 0 | BE21: 0 | BF21: 0 | BG21: 0 | BH21: 0 | BI21: 0 | BJ21: 0 | BK21: 0 | BL21: 0 | BM21: 0 | BN21: 0 | BO21: 0 | BP21: 0
B22: Lot de travaux | G22: 2025-06-01 | H22: 2025-08-01 | I22: 0 | J22: 0 | K22: 0 | L22: 0 | M22: 0 | N22: 1 | O22: 1 | P22: 1 | Q22: 0 | R22: 0 | S22: 0 | T22: 0 | U22: 0 | V22: 0 | W22: 0 | X22: 0 | Y22: 0 | Z22: 0 | AA22: 0 | AB22: 0 | AC22: 0 | AD22: 0 | AE22: 0 | AF22: 0 | AG22: 0 | AH22: 0 | AI22: 0 | AJ22: 0 | AK22: 0 | AL22: 0 | AM22: 0 | AN22: 0 | AO22: 0 | AP22: 0 | AQ22: 0 | AR22: 0 | AS22: 0 | AT22: 0 | AU22: 0 | AV22: 0 | AW22: 0 | AX22: 0 | AY22: 0 | AZ22: 0 | BA22: 0 | BB22: 0 | BC22: 0 | BD22: 0 | BE22: 0 | BF22: 0 | BG22: 0 | BH22: 0 | BI22: 0 | BJ22: 0 | BK22: 0 | BL22: 0 | BM22: 0 | BN22: 0 | BO22: 0 | BP22: 0
B23: Jalon | G23: 2026-01-01 | H23: 2026-12-01 | I23: 0 | J23: 0 | K23: 0 | L23: 0 | M23: 0 | N23: 0 | O23: 0 | P23: 0 | Q23: 0 | R23: 0 | S23: 0 | T23: 0 | U23: 1 | V23: 1 | W23: 1 | X23: 1 | Y23: 1 | Z23: 1 | AA23: 1 | AB23: 1 | AC23: 1 | AD23: 1 | AE23: 1 | AF23: 1 | AG23: 0 | AH23: 0 | AI23: 0 | AJ23: 0 | AK23: 0 | AL23: 0 | AM23: 0 | AN23: 0 | AO23: 0 | AP23: 0 | AQ23: 0 | AR23: 0 | AS23: 0 | AT23: 0 | AU23: 0 | AV23: 0 | AW23: 0 | AX23: 0 | AY23: 0 | AZ23: 0 | BA23: 0 | BB23: 0 | BC23: 0 | BD23: 0 | BE23: 0 | BF23: 0 | BG23: 0 | BH23: 0 | BI23: 0 | BJ23: 0 | BK23: 0 | BL23: 0 | BM23: 0 | BN23: 0 | BO23: 0 | BP23: 0
I24: 0 | J24: 0 | K24: 0 | L24: 0 | M24: 0 | N24: 0 | O24: 0 | P24: 0 | Q24: 0 | R24: 0 | S24: 0 | T24: 0 | U24: 0 | V24: 0 | W24: 0 | X24: 0 | Y24: 0 | Z24: 0 | AA24: 0 | AB24: 0 | AC24: 0 | AD24: 0 | AE24: 0 | AF24: 0 | AG24: 0 | AH24: 0 | AI24: 0 | AJ24: 0 | AK24: 0 | AL24: 0 | AM24: 0 | AN24: 0 | AO24: 0 | AP24: 0 | AQ24: 0 | AR24: 0 | AS24: 0 | AT24: 0 | AU24: 0 | AV24: 0 | AW24: 0 | AX24: 0 | AY24: 0 | AZ24: 0 | BA24: 0 | BB24: 0 | BC24: 0 | BD24: 0 | BE24: 0 | BF24: 0 | BG24: 0 | BH24: 0 | BI24: 0 | BJ24: 0 | BK24: 0 | BL24: 0 | BM24: 0 | BN24: 0 | BO24: 0 | BP24: 0
B25: Fin | C25: Achèvement du projet et rapport final | G25: 2027-12-01 | H25: 2027-12-01 | I25: 0 | J25: 0 | K25: 0 | L25: 0 | M25: 0 | N25: 0 | O25: 0 | P25: 0 | Q25: 0 | R25: 0 | S25: 0 | T25: 0 | U25: 0 | V25: 0 | W25: 0 | X25: 0 | Y25: 0 | Z25: 0 | AA25: 0 | AB25: 0 | AC25: 0 | AD25: 0 | AE25: 0 | AF25: 0 | AG25: 0 | AH25: 0 | AI25: 0 | AJ25: 0 | AK25: 0 | AL25: 0 | AM25: 0 | AN25: 0 | AO25: 0 | AP25: 0 | AQ25: 0 | AR25: 1 | AS25: 0 | AT25: 0 | AU25: 0 | AV25: 0 | AW25: 0 | AX25: 0 | AY25: 0 | AZ25: 0 | BA25: 0 | BB25: 0 | BC25: 0 | BD25: 0 | BE25: 0 | BF25: 0 | BG25: 0 | BH25: 0 | BI25: 0 | BJ25: 0 | BK25: 0 | BL25: 0 | BM25: 0 | BN25: 0 | BO25: 0 | BP25: 0
I26: 0 | J26: 0 | K26: 0 | L26: 0 | M26: 0 | N26: 0 | O26: 0 | P26: 0 | Q26: 0 | R26: 0 | S26: 0 | T26: 0 | U26: 0 | V26: 0 | W26: 0 | X26: 0 | Y26: 0 | Z26: 0 | AA26: 0 | AB26: 0 | AC26: 0 | AD26: 0 | AE26: 0 | AF26: 0 | AG26: 0 | AH26: 0 | AI26: 0 | AJ26: 0 | AK26: 0 | AL26: 0 | AM26: 0 | AN26: 0 | AO26: 0 | AP26: 0 | AQ26: 0 | AR26: 0 | AS26: 0 | AT26: 0 | AU26: 0 | AV26: 0 | AW26: 0 | AX26: 0 | AY26: 0 | AZ26: 0 | BA26: 0 | BB26: 0 | BC26: 0 | BD26: 0 | BE26: 0 | BF26: 0 | BG26: 0 | BH26: 0 | BI26: 0 | BJ26: 0 | BK26: 0 | BL26: 0 | BM26: 0 | BN26: 0 | BO26: 0 | BP26: 0
I27: 0 | J27: 0 | K27: 0 | L27: 0 | M27: 0 | N27: 0 | O27: 0 | P27: 0 | Q27: 0 | R27: 0 | S27: 0 | T27: 0 | U27: 0 | V27: 0 | W27: 0 | X27: 0 | Y27: 0 | Z27: 0 | AA27: 0 | AB27: 0 | AC27: 0 | AD27: 0 | AE27: 0 | AF27: 0 | AG27: 0 | AH27: 0 | AI27: 0 | AJ27: 0 | AK27: 0 | AL27: 0 | AM27: 0 | AN27: 0 | AO27: 0 | AP27: 0 | AQ27: 0 | AR27: 0 | AS27: 0 | AT27: 0 | AU27: 0 | AV27: 0 | AW27: 0 | AX27: 0 | AY27: 0 | AZ27: 0 | BA27: 0 | BB27: 0 | BC27: 0 | BD27: 0 | BE27: 0 | BF27: 0 | BG27: 0 | BH27: 0 | BI27: 0 | BJ27: 0 | BK27: 0 | BL27: 0 | BM27: 0 | BN27: 0 | BO27: 0 | BP27: 0
I28: 0 | J28: 0 | K28: 0 | L28: 0 | M28: 0 | N28: 0 | O28: 0 | P28: 0 | Q28: 0 | R28: 0 | S28: 0 | T28: 0 | U28: 0 | V28: 0 | W28: 0 | X28: 0 | Y28: 0 | Z28: 0 | AA28: 0 | AB28: 0 | AC28: 0 | AD28: 0 | AE28: 0 | AF28: 0 | AG28: 0 | AH28: 0 | AI28: 0 | AJ28: 0 | AK28: 0 | AL28: 0 | AM28: 0 | AN28: 0 | AO28: 0 | AP28: 0 | AQ28: 0 | AR28: 0 | AS28: 0 | AT28: 0 | AU28: 0 | AV28: 0 | AW28: 0 | AX28: 0 | AY28: 0 | AZ28: 0 | BA28: 0 | BB28: 0 | BC28: 0 | BD28: 0 | BE28: 0 | BF28: 0 | BG28: 0 | BH28: 0 | BI28: 0 | BJ28: 0 | BK28: 0 | BL28: 0 | BM28: 0 | BN28: 0 | BO28: 0 | BP28: 0
I29: 0 | J29: 0 | K29: 0 | L29: 0 | M29: 0 | N29: 0 | O29: 0 | P29: 0 | Q29: 0 | R29: 0 | S29: 0 | T29: 0 | U29: 0 | V29: 0 | W29: 0 | X29: 0 | Y29: 0 | Z29: 0 | AA29: 0 | AB29: 0 | AC29: 0 | AD29: 0 | AE29: 0 | AF29: 0 | AG29: 0 | AH29: 0 | AI29: 0 | AJ29: 0 | AK29: 0 | AL29: 0 | AM29: 0 | AN29: 0 | AO29: 0 | AP29: 0 | AQ29: 0 | AR29: 0 | AS29: 0 | AT29: 0 | AU29: 0 | AV29: 0 | AW29: 0 | AX29: 0 | AY29: 0 | AZ29: 0 | BA29: 0 | BB29: 0 | BC29: 0 | BD29: 0 | BE29: 0 | BF29: 0 | BG29: 0 | BH29: 0 | BI29: 0 | BJ29: 0 | BK29: 0 | BL29: 0 | BM29: 0 | BN29: 0 | BO29: 0 | BP29: 0
I30: 0 | J30: 0 | K30: 0 | L30: 0 | M30: 0 | N30: 0 | O30: 0 | P30: 0 | Q30: 0 | R30: 0 | S30: 0 | T30: 0 | U30: 0 | V30: 0 | W30: 0 | X30: 0 | Y30: 0 | Z30: 0 | AA30: 0 | AB30: 0 | AC30: 0 | AD30: 0 | AE30: 0 | AF30: 0 | AG30: 0 | AH30: 0 | AI30: 0 | AJ30: 0 | AK30: 0 | AL30: 0 | AM30: 0 | AN30: 0 | AO30: 0 | AP30: 0 | AQ30: 0 | AR30: 0 | AS30: 0 | AT30: 0 | AU30: 0 | AV30: 0 | AW30: 0 | AX30: 0 | AY30: 0 | AZ30: 0 | BA30: 0 | BB30: 0 | BC30: 0 | BD30: 0 | BE30: 0 | BF30: 0 | BG30: 0 | BH30: =IF(AND(BH$17>=$G30,BH$17<=$H30),1,0) -> 0 | BI30: 0 | BJ30: 0 | BK30: 0 | BL30: 0 | BM30: 0 | BN30: 0 | BO30: 0 | BP30: 0
I31: 0 | J31: 0 | K31: 0 | L31: 0 | M31: 0 | N31: 0 | O31: 0 | P31: 0 | Q31: 0 | R31: 0 | S31: 0 | T31: 0 | U31: 0 | V31: 0 | W31: 0 | X31: 0 | Y31: 0 | Z31: 0 | AA31: 0 | AB31: 0 | AC31: 0 | AD31: 0 | AE31: 0 | AF31: 0 | AG31: 0 | AH31: 0 | AI31: 0 | AJ31: 0 | AK31: 0 | AL31: 0 | AM31: 0 | AN31: 0 | AO31: 0 | AP31: 0 | AQ31: 0 | AR31: 0 | AS31: 0 | AT31: 0 | AU31: 0 | AV31: 0 | AW31: 0 | AX31: 0 | AY31: 0 | AZ31: 0 | BA31: 0 | BB31: 0 | BC31: 0 | BD31: 0 | BE31: 0 | BF31: 0 | BG31: 0 | BH31: 0 | BI31: 0 | BJ31: 0 | BK31: 0 | BL31: 0 | BM31: 0 | BN31: 0 | BO31: 0 | BP31: 0
I32: 0 | J32: 0 | K32: 0 | L32: 0 | M32: 0 | N32: 0 | O32: 0 | P32: 0 | Q32: 0 | R32: 0 | S32: 0 | T32: 0 | U32: 0 | V32: 0 | W32: 0 | X32: 0 | Y32: 0 | Z32: 0 | AA32: 0 | AB32: 0 | AC32: 0 | AD32: 0 | AE32: 0 | AF32: 0 | AG32: 0 | AH32: 0 | AI32: 0 | AJ32: 0 | AK32: 0 | AL32: 0 | AM32: 0 | AN32: 0 | AO32: 0 | AP32: 0 | AQ32: 0 | AR32: 0 | AS32: 0 | AT32: 0 | AU32: 0 | AV32: 0 | AW32: 0 | AX32: 0 | AY32: 0 | AZ32: 0 | BA32: 0 | BB32: 0 | BC32: 0 | BD32: 0 | BE32: 0 | BF32: 0 | BG32: 0 | BH32: 0 | BI32: 0 | BJ32: 0 | BK32: 0 | BL32: 0 | BM32: 0 | BN32: 0 | BO32: 0 | BP32: 0
I33: 0 | J33: 0 | K33: 0 | L33: 0 | M33: 0 | N33: 0 | O33: 0 | P33: 0 | Q33: 0 | R33: 0 | S33: 0 | T33: 0 | U33: 0 | V33: 0 | W33: 0 | X33: 0 | Y33: 0 | Z33: 0 | AA33: 0 | AB33: 0 | AC33: 0 | AD33: 0 | AE33: 0 | AF33: 0 | AG33: 0 | AH33: 0 | AI33: 0 | AJ33: 0 | AK33: 0 | AL33: 0 | AM33: 0 | AN33: 0 | AO33: 0 | AP33: 0 | AQ33: 0 | AR33: 0 | AS33: 0 | AT33: 0 | AU33: 0 | AV33: 0 | AW33: 0 | AX33: 0 | AY33: 0 | AZ33: 0 | BA33: 0 | BB33: 0 | BC33: 0 | BD33: 0 | BE33: 0 | BF33: 0 | BG33: 0 | BH33: 0 | BI33: 0 | BJ33: 0 | BK33: 0 | BL33: 0 | BM33: 0 | BN33: 0 | BO33: 0 | BP33: 0
I34: 0 | J34: 0 | K34: 0 | L34: 0 | M34: 0 | N34: 0 | O34: 0 | P34: 0 | Q34: 0 | R34: 0 | S34: 0 | T34: 0 | U34: 0 | V34: 0 | W34: 0 | X34: =IF(AND(X$17>=$G34,X$17<=$H34),1,0) -> 0 | Y34: 0 | Z34: 0 | AA34: 0 | AB34: 0 | AC34: 0 | AD34: 0 | AE34: 0 | AF34: 0 | AG34: 0 | AH34: 0 | AI34: 0 | AJ34: 0 | AK34: 0 | AL34: 0 | AM34: 0 | AN34: =IF(AND(AN$17>=$G34,AN$17<=$H34),1,0) -> 0 | AO34: 0 | AP34: 0 | AQ34: 0 | AR34: 0 | AS34: 0 | AT34: 0 | AU34: 0 | AV34: 0 | AW34: 0 | AX34: 0 | AY34: 0 | AZ34: 0 | BA34: 0 | BB34: 0 | BC34: 0 | BD34: =IF(AND(BD$17>=$G34,BD$17<=$H34),1,0) -> 0 | BE34: 0 | BF34: 0 | BG34: 0 | BH34: 0 | BI34: 0 | BJ34: 0 | BK34: 0 | BL34: 0 | BM34: 0 | BN34: 0 | BO34: 0 | BP34: 0
I35: 0 | J35: 0 | K35: 0 | L35: 0 | M35: 0 | N35: 0 | O35: 0 | P35: 0 | Q35: 0 | R35: 0 | S35: 0 | T35: 0 | U35: 0 | V35: 0 | W35: 0 | X35: 0 | Y35: 0 | Z35: 0 | AA35: 0 | AB35: 0 | AC35: 0 | AD35: 0 | AE35: 0 | AF35: 0 | AG35: 0 | AH35: 0 | AI35: 0 | AJ35: 0 | AK35: 0 | AL35: 0 | AM35: 0 | AN35: 0 | AO35: 0 | AP35: 0 | AQ35: 0 | AR35: 0 | AS35: 0 | AT35: 0 | AU35: 0 | AV35: 0 | AW35: 0 | AX35: 0 | AY35: 0 | AZ35: 0 | BA35: 0 | BB35: 0 | BC35: 0 | BD35: 0 | BE35: 0 | BF35: 0 | BG35: 0 | BH35: 0 | BI35: 0 | BJ35: 0 | BK35: 0 | BL35: 0 | BM35: 0 | BN35: 0 | BO35: 0 | BP35: 0
I36: 0 | J36: 0 | K36: 0 | L36: 0 | M36: 0 | N36: 0 | O36: 0 | P36: 0 | Q36: 0 | R36: 0 | S36: 0 | T36: 0 | U36: 0 | V36: 0 | W36: 0 | X36: 0 | Y36: 0 | Z36: 0 | AA36: 0 | AB36: 0 | AC36: 0 | AD36: 0 | AE36: 0 | AF36: 0 | AG36: 0 | AH36: 0 | AI36: 0 | AJ36: 0 | AK36: 0 | AL36: 0 | AM36: 0 | AN36: 0 | AO36: 0 | AP36: 0 | AQ36: 0 | AR36: 0 | AS36: 0 | AT36: 0 | AU36: 0 | AV36: 0 | AW36: 0 | AX36: 0 | AY36: 0 | AZ36: 0 | BA36: 0 | BB36: 0 | BC36: 0 | BD36: 0 | BE36: 0 | BF36: 0 | BG36: 0 | BH36: 0 | BI36: 0 | BJ36: 0 | BK36: 0 | BL36: 0 | BM36: 0 | BN36: 0 | BO36: 0 | BP36: 0
I37: 0 | J37: 0 | K37: 0 | L37: 0 | M37: 0 | N37: 0 | O37: 0 | P37: 0 | Q37: 0 | R37: 0 | S37: 0 | T37: 0 | U37: 0 | V37: 0 | W37: 0 | X37: 0 | Y37: 0 | Z37: 0 | AA37: 0 | AB37: 0 | AC37: 0 | AD37: 0 | AE37: 0 | AF37: 0 | AG37: 0 | AH37: 0 | AI37: 0 | AJ37: 0 | AK37: 0 | AL37: 0 | AM37: 0 | AN37: 0 | AO37: 0 | AP37: 0 | AQ37: 0 | AR37: 0 | AS37: 0 | AT37: 0 | AU37: 0 | AV37: 0 | AW37: 0 | AX37: 0 | AY37: 0 | AZ37: 0 | BA37: 0 | BB37: 0 | BC37: 0 | BD37: 0 | BE37: 0 | BF37: 0 | BG37: 0 | BH37: 0 | BI37: 0 | BJ37: 0 | BK37: 0 | BL37: 0 | BM37: 0 | BN37: 0 | BO37: 0 | BP37: 0
I38: 0 | J38: 0 | K38: 0 | L38: 0 | M38: 0 | N38: 0 | O38: 0 | P38: 0 | Q38: 0 | R38: 0 | S38: 0 | T38: 0 | U38: 0 | V38: 0 | W38: 0 | X38: 0 | Y38: 0 | Z38: 0 | AA38: 0 | AB38: 0 | AC38: 0 | AD38: 0 | AE38: 0 | AF38: 0 | AG38: 0 | AH38: 0 | AI38: 0 | AJ38: 0 | AK38: 0 | AL38: 0 | AM38: 0 | AN38: 0 | AO38: 0 | AP38: 0 | AQ38: 0 | AR38: 0 | AS38: 0 | AT38: 0 | AU38: 0 | AV38: 0 | AW38: 0 | AX38: 0 | AY38: 0 | AZ38: 0 | BA38: 0 | BB38: 0 | BC38: 0 | BD38: 0 | BE38: 0 | BF38: 0 | BG38: 0 | BH38: 0 | BI38: 0 | BJ38: 0 | BK38: 0 | BL38: 0 | BM38: 0 | BN38: 0 | BO38: 0 | BP38: 0
I39: 0 | J39: 0 | K39: 0 | L39: 0 | M39: 0 | N39: 0 | O39: 0 | P39: 0 | Q39: 0 | R39: 0 | S39: 0 | T39: 0 | U39: 0 | V39: 0 | W39: 0 | X39: 0 | Y39: 0 | Z39: 0 | AA39: 0 | AB39: 0 | AC39: 0 | AD39: 0 | AE39: 0 | AF39: 0 | AG39: 0 | AH39: 0 | AI39: 0 | AJ39: 0 | AK39: 0 | AL39: 0 | AM39: 0 | AN39: 0 | AO39: 0 | AP39: 0 | AQ39: 0 | AR39: 0 | AS39: 0 | AT39: 0 | AU39: 0 | AV39: 0 | AW39: 0 | AX39: 0 | AY39: 0 | AZ39: 0 | BA39: 0 | BB39: 0 | BC39: 0 | BD39: 0 | BE39: 0 | BF39: 0 | BG39: 0 | BH39: 0 | BI39: 0 | BJ39: 0 | BK39: 0 | BL39: 0 | BM39: 0 | BN39: 0 | BO39: 0 | BP39: 0
I40: 0 | J40: 0 | K40: 0 | L40: 0 | M40: 0 | N40: 0 | O40: 0 | P40: 0 | Q40: 0 | R40: 0 | S40: 0 | T40: 0 | U40: 0 | V40: 0 | W40: 0 | X40: 0 | Y40: 0 | Z40: 0 | AA40: 0 | AB40: 0 | AC40: 0 | AD40: 0 | AE40: 0 | AF40: 0 | AG40: 0 | AH40: 0 | AI40: 0 | AJ40: 0 | AK40: 0 | AL40: 0 | AM40: 0 | AN40: 0 | AO40: 0 | AP40: 0 | AQ40: 0 | AR40: 0 | AS40: 0 | AT40: 0 | AU40: 0 | AV40: 0 | AW40: 0 | AX40: 0 | AY40: 0 | AZ40: 0 | BA40: 0 | BB40: 0 | BC40: 0 | BD40: 0 | BE40: =IF(AND(BE$17>=$G40,BE$17<=$H40),1,0) -> 0 | BF40: 0 | BG40: 0 | BH40: 0 | BI40: 0 | BJ40: 0 | BK40: 0 | BL40: 0 | BM40: 0 | BN40: 0 | BO40: 0 | BP40: 0
B44: 5.2.1 Calendrier et plan de travail détaillés
B46: Téléverser le calendrier annuel détaillé du projet
B47: Téléverser un nouveau document | G47: Veuillez tenir à disposition tous les documents supplémentaires relatifs au « calendrier et plan de travail » afin de les envoyer à Adapt+ en temps voulu.

Sheet 6 Coûts
B3: Adapt+
B5: 6 Coût du projet et taux de subvention
B7: Vous pourrez déterminer ici le taux de subvention maximal possible puis indiquer les coûts de votre projet.
J8: Les informations relatives à la détermination du taux de subvention sont disponibles dans les informations d'exécution au chapitre 3.2.
B10: 6.1 Détermination du taux de subvention
B12: Le projet consiste-t-il en une adaptation directe ou indirecte ?
G15: 0
B17: Le projet concerne-t-il la planification ou la mise en œuvre d'un projet ?
G21: 0
B23: Votre projet contribue-t-il à prévenir des dommages irréversibles ?
G26: 0
K27: Taux de subvention | L27: =IF(G15<>0,IF(G15=1,25,IF(AND(G15=1,G21=1),NA,IF(AND(G15=2,G21=1),30,40))),"") ->  | M27: %
B28: Votre projet réduit-il plusieurs risques à la fois ?
G29: 0 | K29: Supplément | L29: =IF(G15<>0,IF(G15=1,0,IF(SUM(G26,G29)<=3,10,0)),"") ->  | M29: %
K31: Taux de subvention max. possible | L31: =IF(G36=FALSE,SUM(L29,L27),#REF!) -> 0 | M31: %
B35: Souhaitez-vous bénéficier d'un taux de subvention spécifique inférieur au taux maximal possible ?
G36: FALSE
G37: =IF(G36=TRUE,1,2) -> 2
B38: Si oui, veuillez indiquer le taux d'aide financière requis | G38: 1
D39: Taux maximal
H42: FALSE
B46: 6.2 Coût du projet
B48: Saisissez les coûts liés au projet. Une distinction est faite entre les coûts totaux et les coûts imputables.
B49: À l'heure actuelle, un exemple de calcul est fourni ici pour faciliter la compréhension.
B51: 6.2.1 Coût total
B53: Année | C53: Coût [CHF] | F53: Action
B54: 2025 | C54: 257500
B55: 2026 | C55: 270000
B56: 2027 | C56: 70000
B57: 2028 | C57: 0
B58: 2029 | C58: 0
B64: 6.2.2 Coûts imputables
B66: Année | C66: Type de coût | E66: Jalons concernés | F66: Nombre d'heures | G66: Taux horaire | H66: Coût | J66: Contribution max. Confédération (calculée)
N67: Les informations relatives aux coûts imputables figurent dans les communications d'exécution disponibles sous le lien suivant :
B68: 2025 | C68: Réalisation LT1 | E68: J1 | H68: 10000 | J68: =IF($L$31>0,$L$31/100*H68,"") -> 
B69: 2025 | C69: Réalisation LT2 | E69: J1 | H69: 5000 | J69: =IF($L$31>0,$L$31/100*H69,"") ->  | N69: Communication de l'OFEV
B70: 2026 | C70: Réalisation LT3 | E70: J1 | H70: 20000
B71: 2026 | C71: Réalisation LT4 | E71: J2 | H71: 20000
B72: 2027 | C72: Réalisation LT5 | E72: J3 | H72: 20000 | N72: Une justification détaillée doit être téléchargée dans des documents séparés.
B73: 2027 | C73: Réalisation LT6 | E73: J4 | H73: 20000 | N73: Téléverser un nouveau document
B80: 6.2.3 Total coûts imputables
B82: Année | C82: Total coûts imputables | F82: Contribution totale max. Adapt+ calculée
B83: 2025 | C83: =SUMIF($B$68:$B$77,B83,$H$68:$I$77) -> 15000 | F83: =SUMIF($B$68:$B$77,B83,$J$68:$L$77) -> 0
B84: 2026 | C84: =SUMIF($B$68:$B$77,B84,$H$68:$I$77) -> 40000 | F84: =SUMIF($B$68:$B$77,B84,$J$68:$L$77) -> 0
B85: 2027 | C85: =SUMIF($B$68:$B$77,B85,$H$68:$I$77) -> 40000 | F85: =SUMIF($B$68:$B$77,B85,$J$68:$L$77) -> 0
B86: 2028 | C86: =SUMIF($B$68:$B$77,B86,$H$68:$I$77) -> 0 | F86: =SUMIF($B$68:$B$77,B86,$J$68:$L$77) -> 0
B87: 2029 | C87: 0 | F87: 0
B88: Total | C88: =SUM(C83:E85) -> 95000 | F88: =SUM(F83:H85) -> 0 | G88: 200000
B92: 6.3 Moyens disponibles
B94: 6.3.1 Moyens disponibles
B95: Saisissez les moyens disponibles pour le projet. Une distinction est faite entre les fonds propres, les fonds tiers et les fonds tiers provenant d'autres contributions fédérales.
B97: Année | C97: Type de moyens | G97: Coûts [CHF]
B98: 2025 | C98: Fonds propre | I98: 100000
B99: 2025 | C99: Fonds tiers | I99: 150000
B100: 2026 | C100: Fonds propre | I100: 100000
B101: 2026 | C101: Fonds tiers | I101: 50000
B102: 2026 | C102: Fonds tiers de contributions fédérales | I102: 10000
B103: 2026 | C103: Fonds propre | I103: 100000
B104: 2027 | C104: Fonds tiers | I104: 50000
B110: 6.3.2 Total des fonds disponibles
B112: Année | C112: Fonds propre | F112: Fonds tiers | I112: Fonds tiers de contributions fédérales | M112: Total Année
B113: 2025 | C113: =SUMIFS($I$98:$I$108,$B$98:$B$108,B113,$C$98:$C$108,C$112) -> 100000 | F113: =SUMIFS($I$98:$I$108,$B$98:$B$108,$B113,$C$98:$C$108,F$112) -> 150000 | I113: =SUMIFS($I$98:$I$108,$B$98:$B$108,$B113,$C$98:$C$108,I$112) -> 0 | L113: =SUM(C113:K113) -> 250000 | O113: =IF(OR(ISBLANK(I113),I113=0),1,0) -> 1 | P113: =SUM(O113:O115) -> 2
B114: 2026 | C114: =SUMIFS($I$98:$I$108,$B$98:$B$108,B114,$C$98:$C$108,C$112) -> 200000 | F114: =SUMIFS($I$98:$I$108,$B$98:$B$108,$B114,$C$98:$C$108,F$112) -> 50000 | I114: =SUMIFS($I$98:$I$108,$B$98:$B$108,$B114,$C$98:$C$108,I$112) -> 10000 | L114: =SUM(C114:K114) -> 260000 | O114: =IF(OR(ISBLANK(I114),I114=0),1,0) -> 0
B115: 2027 | C115: =SUMIFS($I$98:$I$108,$B$98:$B$108,B115,$C$98:$C$108,C$112) -> 0 | F115: 50000 | I115: 0 | L115: =SUM(C115:K115) -> 50000 | O115: 1
B116: 2028 | C116: =SUMIFS($I$98:$I$108,$B$98:$B$108,B116,$C$98:$C$108,C$112) -> 0 | F116: 0 | I116: 0 | L116: 0
B117: 2029 | C117: =SUMIFS($I$98:$I$108,$B$98:$B$108,B117,$C$98:$C$108,C$112) -> 0 | F117: 0 | I117: 0 | L117: 0
B118: Total | C118: =SUM(C113:E117) -> 300000 | F118: =SUM(F113:H117) -> 250000 | I118: =SUM(I113:K117) -> 10000 | L118: =SUM(C118:K118) -> 560000 | M118: =SUM(C118:K118) -> 560000
B121: 6.4 Contributions Adapt+ et fonds effectifs | M121: Montant maximal souhaité (montant maximal <= contribution Adapt+)
B123: Année | D123: Contribution Adapt+ calculée. | E123: En % imputable | H123: Autres montants Confédération | J123: Contributions Adapt+ et fonds effectifs | K123: % imputable | M123: Année | N123: Montant souhaité | P123: Sous « Montant souhaité », vous pouvez saisir un montant inférieur au montant maximal de la subvention. Celui-ci sera repris dans la suite de la procédure.
B124: 2025 | C124: =SUMIF($B$68:$B$77,B124,$J$68:$L$77) -> 0 | E124: =IF(C124>0,C124*100/C83,"") ->  | G124: =SUMIF($B$113:$B$117,B124,$I$113:$K$117) -> 0 | I124: =C124-G124 -> 0 | K124: =IF(I124>0,I124*100/C83,"") ->  | M124: 2026 | N124: 0
B125: 2026 | C125: =SUMIF($B$68:$B$77,B125,$J$68:$L$77) -> 0 | E125: =IF(C125>0,C125*100/C84,"") ->  | G125: =SUMIF($B$113:$B$117,B125,$I$113:$K$117) -> 10000 | I125: =C125-G125 -> -10000 | K125: =IF(I125>0,I125*100/C84,"") ->  | M125: 2027 | N125: 0
B126: 2027 | C126: 0 | G126: 0 | I126: 0 | K126: =IF(I126>0,I126*100/C85,"") ->  | M126: 2028 | N126: 0
B127: 2028 | C127: 0 | G127: 0 | I127: 0 | M127: 2029 | N127: 0
B128: 2029 | C128: 0 | G128: 0 | I128: 0 | M128: 2030 | N128: 0
B129: Total | C129: =SUM(C124:D128) -> 0 | E129: =IF(C129<>0,AVERAGE(E124:F128),"") ->  | G129: =SUM(G124:H128) -> 10000 | I129: =SUM(I124:I128) -> -10000 | K129: =I129*100/C88 -> -10.52631579 | M129: Total | N129: =SUM(N124:N128) -> 0
B132: 6.5 Aperçu général | K132: ATTENTION : double financement
B134: Année | C134: Coût total | E134: Total fonds | G134: Dont ressources propres | I134: Dont ressources tiers | K134: dont fonds tiers contributions fédérales | M134: dont contributions Adapt+ | O134: Différence
B135: 2025 | C135: =SUMIF($B$54:$B$61,B135,$C$54:$E$61) -> 257500 | E135: =SUMIF($B$113:$B$117,B135,$M$113:$M$117)+SUMIF($B$124:$B$128,B135,$I$124:$J$128) -> 0 | G135: =SUMIF($B$113:$B$117,B135,$C$113:$E$117) -> 100000 | I135: =SUMIF($B$113:$B$117,B135,$F$113:$H$117) -> 150000 | K135: =SUMIF($B$113:$B$117,B135,$I$113:$K$117) -> 0 | M135: =IF(N124>0,MIN(N124,I124),I124) -> 0 | O135: =E135-C135 -> -257500
B136: 2026 | C136: =SUMIF($B$54:$B$61,B136,$C$54:$E$61) -> 270000 | E136: =SUMIF($B$113:$B$117,B136,$M$113:$M$117)+SUMIF($B$124:$B$128,B136,$I$124:$J$128) -> -10000 | G136: =SUMIF($B$113:$B$117,B136,$C$113:$E$117) -> 200000 | I136: =SUMIF($B$113:$B$117,B136,$F$113:$H$117) -> 50000 | K136: =SUMIF($B$113:$B$117,B136,$I$113:$K$117) -> 10000 | M136: =IF(N125>0,MIN(N125,I125),I125) -> -10000 | O136: =E136-C136 -> -280000
B137: 2027 | C137: 70000 | E137: =SUMIF($B$113:$B$117,B137,$M$113:$M$117)+SUMIF($B$124:$B$128,B137,$I$124:$J$128) -> 0 | G137: 0 | I137: 50000 | K137: 0 | M137: 0 | O137: -70000
B138: 2028 | C138: 0 | E138: 0 | G138: 0 | I138: 0 | K138: 0 | M138: 0 | O138: 0
B139: 2029 | C139: 0 | E139: 0 | G139: 0 | I139: 0 | K139: 0 | M139: 0
B140: Total | C140: =SUM(C135:C139) -> 597500 | D140: =SUMIF($B$54:$B$56,B140,$C$54:$E$56) -> 0 | E140: =SUM(E135:E139) -> -10000 | F140: =SUMIF($B$54:$B$56,D140,$C$54:$E$56) -> 0 | G140: =SUM(G135:H139) -> 300000 | I140: =SUM(I135:J139) -> 250000 | K140: =SUM(K135:L139) -> 10000 | M140: =SUM(M135:N139) -> -10000 | O140: =E140-C140 -> -607500
B144: 6.6 Documents
B146: Téléverser un nouveau document | G146: Tous les fonds propres et les fonds tiers provenant d'autres sources (canton ou similaire) doivent être attestés par un document. Si l'octroi de certaines parts de financement dépend de l'aide financière d'Adapt+, cela doit également être prouvé ici au moyen d'un document délivré par l'autorité compétente.

Sheet 7 Échéancier
B3: Adapt+
B5: 7 Echéancier
B7: 7.1 Ébauche du plan de paiements
B10: La période de référence couvre la période comprise entre le 1er juillet et le 30 juin de l'année suivante.
B11: Pour les versements effectués en septembre, les rapports doivent être remis au plus tard le 31 juillet.
B13: Jalon | C13: Date réalisation | D13: Coût | F13: Année | G13: Total | I13: Période de paiement | J13: Dépenses jusqu'au | K13: Paiement jusqu'au | L13: Montant | M13: optional | N13: Montant maximal possible | Q13: Un acompte maximal de 20 % du montant de la subvention peut être versé après réception du compte rendu de la réunion de lancement. Ce paiement sera déduit de la première facture annuelle.
B14: J1 | C14: 2026-06-01 | D14: =IF(ISBLANK(B14),"",SUMIF('6 Coûts'!E68:E77,'7 Échéancier'!B14,'6 Coûts'!J68:L77)) -> 0 | F14: 2026 | G14: =SUMIFS($D$14:$D$22,$C$14:$C$22,"<="&J15,$C$14:$C$22,">"&J14) -> 0 | I14: Acompte max. 20% | J14: 2025-11-01 | K14: 2025-12-31 | M14: FALSE | N14: =IF(M14=TRUE,0.2*G18,"") -> 
B15: J2 | C15: 2026-06-15 | D15: =IF(ISBLANK(B15),"",SUMIF('6 Coûts'!E69:E78,'7 Échéancier'!B15,'6 Coûts'!J69:L78)) -> 0 | F15: 2027 | G15: =SUMIFS($D$14:$D$22,$C$14:$C$22,"<="&J16,$C$14:$C$22,">"&J15) -> 0 | I15: Paiement 2026 | J15: 2026-06-30 | K15: 2026-09-30 | L15: =G14-L14 -> 0
B16: J3 | C16: 2026-03-26 | D16: =IF(ISBLANK(B16),"",SUMIF('6 Coûts'!E70:E79,'7 Échéancier'!B16,'6 Coûts'!J70:L79)) -> 0 | F16: 2028 | G16: =SUMIFS($D$14:$D$22,$C$14:$C$22,"<="&J17,$C$14:$C$22,">"&J16) -> 0 | I16: Paiement 2027 | J16: 2027-06-30 | K16: 2027-09-30 | L16: =G15 -> 0
B17: J4 | C17: 2027-02-01 | D17: =IF(ISBLANK(B17),"",SUMIF('6 Coûts'!E71:E80,'7 Échéancier'!B17,'6 Coûts'!J71:L80)) -> 0 | F17: 2029 | G17: =SUMIFS($D$14:$D$22,$C$14:$C$22,"<="&DATE(2029,12,31),$C$14:$C$22,">"&J17) -> 0 | I17: Paiement 2028 | J17: 2028-06-30 | K17: 2028-09-30 | L17: =G16 -> 0
B18: J5 | C18: 2028-06-30 | D18: =IF(ISBLANK(B18),"",SUMIF('6 Coûts'!E72:E81,'7 Échéancier'!B18,'6 Coûts'!J72:L81)) -> 0 | F18: Total | G18: =SUM(G14:G17) -> 0 | I18: Paiement 2029 | J18: 2029-06-30 | K18: 2029-09-30 | L18: =G17 -> 0
C19: 2029-06-30 | D19: =IF(ISBLANK(B19),"",SUMIF('6 Coûts'!E73:E82,'7 Échéancier'!B19,'6 Coûts'!J73:L82)) ->  | I19: Total | L19: =SUM(L14:L18) -> 0
D20: =IF(ISBLANK(B20),"",SUMIF('6 Coûts'!E74:E83,'7 Échéancier'!B20,'6 Coûts'!J74:L83)) -> 
D21: =IF(ISBLANK(B21),"",SUMIF('6 Coûts'!E75:E84,'7 Échéancier'!B21,'6 Coûts'!J75:L84)) -> 
D22: =IF(ISBLANK(B22),"",SUMIF('6 Coûts'!E76:E85,'7 Échéancier'!B22,'6 Coûts'!J76:L85)) ->  | I22: Contrôle du paiement final au moins 20 % | Q22: Le paiement final doit généralement correspondre à environ 20 % du montant de la subvention totale et ne devrait pas être inférieur à celui-ci.
I23: Paiement final | J23: min. 20% | L23: =0.2*G18 -> 0

Sheet 8 Confirmation
B3: Adapt+
B5: 8 Confirmation
B7: 8.1 Confirmation
B10: En soumettant sa demande, le requérant confirme avoir compris les conditions et les obligations du programme de soutien Adapt+ et avoir rempli le formulaire de demande de manière véridique. Tout manquement peut entraîner une réduction ou une restitution de la contribution.
D13: FALSE | E13: non éligible | G13: éligible

Sheet Listen (hidden)
A2: Arbeitspaket | C2: J1 | E2: Jalon | G2: Gestion des eaux et hydrologie | H2: Commune | I2: Français | J2: Effets de la hausse des températures sur la santé et sur la productivité | K2: ZH
A3: LT1 | C3: J2 | E3: Lot de travaux | G3: Gestion des dangers naturels | H3: Canton | I3: Italien | J3: Effets de la hausse des températures sur les infrastructures | K3: BE
A4: LT2 | C4: J3 | E4: Fin | G4: Agriculture | H4: Suisse entière | I4: Allemand | J4: Effets de la hausse des températures sur l'agriculture et l'économie forestière | K4: LU
A5: LT3 | C5: J4 | E5: Autres | G5: Gestion des forêts | H5: Régional | J5: Etés pauvres en pluie | K5: UR
A6: LT4 | C6: J5 | G6: Énergie | H6: Supra-régional | J6: Danger d'incendie de la forêt accru | K6: SZ
A7: LT5 | C7: J6 | G7: Tourisme | J7: Faibles niveaux d'eau | K7: OW
A8: LT6 | C8: J7 | G8: Gestion de la biodiversité | J8: Crues d'ampleur | K8: NW
A9: LT7 | C9: J8 | G9: Santé humaine | J9: Ruissellement et inondations locales | K9: GL
A10: LT8 | C10: J9 | G10: Santé animale et sécurité alimentaire | J10: Mouvement de terrain gravitaires | K10: ZG
A11: LT9 | G11: Développement territorial | J11: Grêle et tempêtes | K11: FR
G12: Logement | J12: Températures douces | K12: SO
G13: Transports | J13: Hivers peu enneigés | K13: BS
G14: Sécurité d'approvisionnement | J14: Dégradation des écosystèmes et de leurs services | K14: BL
G15: Protection des sols | J15: Multiplication des organismes nuisibles | K15: SH
J16: Altération du paysage | K16: AR
J17: Autres | K17: AI
J18: Minimisation des risques des changements climatiques | K18: SG
J19: Protection de la population, des biens et des ressources naturelles vitales | K19: GR
G20: Mesures de protection en cas de vagues de chaleur | J20: Augmentation de la capacité d’adaptation de la société, de l’économie et de l’environnement | K20: AG
G21: Élaboration de plans canicule | K21: TG
A22: Fonds propre | G22: Arbres dans les zones bâties | K22: TI
A23: Fonds tiers | G23: Désimperméabilisation des surfaces en zone bâtie | K23: VD
A24: Fonds tiers de contributions fédérales | G24: L’eau dans les zones bâties | J24: la durabilité, | K24: VS
G25: Végétalisation des bâtiments dans les zones bâties | J25: l'action commune de la Confédération, des cantons, des communes et des particuliers, | K25: NE
G26: Eléments d’ombrage dans les zones d’habitation | J26: la compatibilité des adaptations avec la protection du climat (c'est-à-dire la réduction des émissions) et | K26: GE
G27: Systèmes d’air froid dans les zones bâties | J27: la prise en compte des connaissances scientifiques. | K27: JU
G28: Espaces verts adaptés au climat en zones bâties | K28: plusieurs
G29: Des eaux adaptées au climat
G30: Instruments de planification pour la gestion de la sécheresse
G31: Concepts d’irrigation pour faire face à la sécheresse estivale
G32: Utilisation de l’eau de pluie
G33: Concepts et analyses de potentiel d’incendie de forêt
G34: Analyse des risques naturels liés au climat
G35: Mesures de protection contre le ruissellement de surface
G36: Concepts/mesures de ville-éponge
G37: Concepts/mesures de territoire-éponge hors zones bâties
G38: Diversification des offres touristiques
G39: Surveillance des organismes nuisibles sensibles au climat
G40: Surveillance des vecteurs de maladies sensibles au climat
G41: Conservation des espèces adaptée au climat

Sheet Berechnungen (hidden)
